Cogmind - Beta 13 @@@ ROGUE MODE // 2024.04.27 @ 21:45:38 Player: luckinvolved Result: Self-destructed Performance ------------- Evolutions (3) 1500 Regions Visited (6) 1200 Robots Destroyed (17) 85 Value Destroyed (296) 296 Prototype IDs (4) 80 Alien Tech Used (0) 0 Bonus (288) 288 TOTAL SCORE: 3449 Bonus ------- Aligned with FarCom 300 Friendly Fire -12 Cogmind --------- Core Integrity 523/700 Matter 117/300 Energy 100/100 System Corruption 0% Temperature Cool (18) Movement Flying (120) Ox1 Location -7/Factory Parts ------- > --- POWER (1) -------- (None) > --- PROPULSION (4) --- Xenon Bombardment Thruster > --- UTILITY (6) ------ Lightpack 2.0 Improved Terrain Scan Processor Hacking Suite > --- WEAPON (2) ------- Makeshift Spear > --- INVENTORY (40) --- Light Nuclear Core Light Treads Light Treads Armored Treads Advanced Treads Heat Sink Coolant Injector Large Storage Unit Large Matter Pod (150) Weight Redist. System Improved Sensor Array Improved Signal Interpreter Improved Signal Interpreter Improved Terrain Scanner Improved Terrain Scanner Melee Analysis Suite Transmission Jammer Advanced ECM Suite Light Armor Plating Improved Medium Armor Plating Supersonic Drone Bay (1/1) Medium Laser Beam Cannon Heavy Ion Cannon Flak Cannon Improved Proton Missile Launcher Grenade Launcher Rocket Launcher Remote Datajack Peak State ------------ > --- POWER ------------ Light Nuclear Core > --- PROPULSION ------- Flight Unit Flight Unit Flight Unit Xenon Bombardment Thruster > --- UTILITY ---------- Lightpack 2.0 Improved Terrain Scanner Improved Terrain Scan Processor Hacking Suite > --- WEAPON ----------- Remote Datajack Makeshift Spear > --- INVENTORY -------- Light Nuclear Core Light Treads Light Treads Armored Treads Advanced Treads Heat Sink Coolant Injector Large Storage Unit Large Matter Pod Weight Redist. System Improved Sensor Array Improved Signal Interpreter Improved Signal Interpreter Improved Terrain Scanner Improved Terrain Scanner Melee Analysis Suite Transmission Jammer Advanced ECM Suite Light Armor Plating Improved Medium Armor Plating Supersonic Drone Bay Medium Laser Beam Cannon Heavy Ion Cannon Flak Cannon Improved Proton Missile Launcher Grenade Launcher Rocket Launcher Precision Rocket Launcher [Rating: 65] Favorites ----------- Power Ion Engine Engine Ion Engine Power Core Light Nuclear Core Propulsion Light Treads Treads Light Treads Flight Unit Flight Unit Utility Large Storage Unit Device Improved Terrain Scanner Storage Large Storage Unit Processor Targeting Computer Hackware Hacking Suite Protection Light Armor Plating Weapon Medium Laser Energy Gun Medium Laser Ballistic Gun Light Assault Rifle Launcher Precision Rocket Launcher Special Weapon Remote Datajack Piercing Weapon Makeshift Spear Special Melee Weapon Improved Datajack Build | -11 -10 -10 -10 -9 -8 -7 ------- Run | Yrd Mat Min Exi Min Mat Fac Slots Evolved 6 | . . . . . 4 2 Power . | . . . . . . . Propulsion 2 | . . . . . 2 . Utility 4 | . . . . . 2 2 Weapon . | . . . . . . . Parts Attached 51 | 7 6 2 4 7 19 6 Power 5 | 2 . 1 . . 1 1 Engine 4 | 2 . 1 . . 1 . Core 1 | . . . . . . 1 Reactor . | . . . . . . . Propulsion 12 | 2 1 1 1 . 6 1 Treads 7 | 2 1 1 1 . 2 . Leg . | . . . . . . . Wheel . | . . . . . . . Hover . | . . . . . . . Flight 5 | . . . . . 4 1 Utility 21 | 1 2 . 3 5 8 2 Device 8 | . . . 1 4 2 1 Storage 7 | 1 1 . 2 . 3 . Processor 2 | . 1 . . . . 1 Hackware 1 | . . . . . 1 . Protection 3 | . . . . 1 2 . Artifact . | . . . . . . . Weapon 13 | 2 3 . . 2 4 2 Energy Gun 6 | 1 3 . . 1 1 . Energy Cannon . | . . . . . . . Ballistic Gun 1 | 1 . . . . . . Ballistic Cannon . | . . . . . . . Launcher 2 | . . . . . 1 1 Special Weapon 1 | . . . . . . 1 Impact Weapon . | . . . . . . . Slashing Weapon . | . . . . . . . Piercing Weapon 2 | . . . . 1 1 . Special Melee Weapon 1 | . . . . . 1 . Unidentified Prototypes 4 | . . . 2 . 1 1 Parts Lost 10 | . . 2 . . 2 6 Power 4 | . . 1 . . 2 1 Propulsion 4 | . . 1 . . . 3 Utility 1 | . . . . . . 1 Weapon 1 | . . . . . . 1 Highest Loss Streak 5 | . . 2 . . 1 5 To Critical Strikes . | . . . . . . . Average Slot Usage (%) 94 | . 98 100 100 100 75 80 Engine 11 | . 14 14 14 14 8 . Treads 23 | . 28 28 28 28 23 . Flight 4 | . . . . . 9 27 Device 3 | . . . . 13 2 6 Storage 13 | . 14 14 21 14 10 7 Processor 7 | . 12 14 6 . . 6 Energy Gun 21 | . 15 28 28 27 15 . Ballistic Gun 1 | . 12 . . . . . Piercing Weapon 1 | . . . . . 1 7 Naked Turns . | . . . . . . . Heaviest Build 32 | 12 29 29 31 30 32 21 Greatest Support 80 | 40 40 40 40 40 80 18 Greatest Overweight (x) 3 | 1 . . . . 3 3 Average Overweight (x) . | . . . . . . . Largest Inventory Capacity 40 | 8 15 15 15 15 40 40 Average Capacity 19 | 7 9 15 15 15 36 40 Most Carried 29 | 2 11 15 15 15 22 29 Average Carried 13 | 1 5 12 14 14 14 25 Final Capacity 40 | 8 15 15 15 15 40 40 Final Carried 29 | 2 11 14 15 15 22 29 Class Distribution -------------------- 77% | Mutant 13% | Hauler-Sprinter 9% | Hauler-Mutant Dominant Class ---------------- Mutant | -10/Materials Mutant | -10/Mines Mutant | -10/Exiles Mutant | -9/Mines Hauler-Mutant | -8/Materials Hauler-Sprinter | -7/Factory Resources | -11 -10 -10 -10 -9 -8 -7 ----------- Run | Yrd Mat Min Exi Min Mat Fac Matter Collected 727 | 200 150 153 . 110 114 . Remotely . | . . . . . . . Salvage Created 526 | . 150 210 . 152 14 . Parts 21 | . 3 3 . 8 7 . Haulers Intercepted 1 | . 1 . . . . . Recyclers Shooed . | . . . . . . . Parts Field Recycled . | . . . . . . . Retrieved Matter . | . . . . . . . Parts Self-Destructed . | . . . . . . . Prevented . | . . . . . . . Kills | -11 -10 -10 -10 -9 -8 -7 ------- Run | Yrd Mat Min Exi Min Mat Fac Combat Hostiles Destroyed 18 | . 2 6 . 6 4 . Melee 1 | . . . . 1 . . Guns 13 | . 1 6 . 5 1 . AOE 3 | . . . . . 3 . Classes Destroyed 5 | . 2 2 . 1 . . Hauler 1 | . 1 . . . . . Recycler 2 | . . 1 . 1 . . Swarmer 10 | . . . . 6 4 . Grunt 4 | . 2 2 . . . . Assembled 4 | . . 4 . . . . Best Kill Streak 4 | . 2 2 . 4 4 . Combat Bots Only 4 | . 2 2 . 4 4 . Max Kills in Single Turn 2 | . 1 1 . 1 2 . Gunslinging . | . . . . . . . Exploded 2 | . . . . . 2 . Melee 1 | . . . . 1 . . Uniques/NPCs Destroyed . | . . . . . . . Combat | -11 -10 -10 -10 -9 -8 -7 -------- Run | Yrd Mat Min Exi Min Mat Fac Hostile Shots Fired 219 | . 12 20 . 54 10 123 Missed 78 | . 5 3 . 14 1 55 Damage Taken 1373 | . 83 291 . 319 156 524 Core 307 | . 10 45 . 68 7 177 Absorbed by Shields . | . . . . . . . Core Remaining (%) 82 | 100 . . . 50 98 . Volleys Fired 67 | . 15 23 . 16 4 9 Largest 2 | . 2 2 . 2 2 1 Hottest 100 | . 100 100 . 100 100 43 Shots Fired 125 | . 30 46 . 32 8 9 Gun 114 | . 30 46 . 32 6 . Cannon . | . . . . . . . Launcher 4 | . . . . . 2 2 Special 7 | . . . . . . 7 Kinetic 8 | . 8 . . . . . Thermal 106 | . 22 46 . 32 6 . Explosive 4 | . . . . . 2 2 Electromagnetic . | . . . . . . . Robot Hit Streak 18 | . 17 18 . 5 4 4 Robot Miss Streak 5 | . 3 2 . 5 1 2 Penetration Max . | . . . . . . . Secondary Targets . | . . . . . . . Shots Hit Robots 85 | . 22 31 . 16 6 10 Core Hits 32 | . 7 14 . 6 4 1 Critical Kills . | . . . . . . . Critical Parts Destroyed . | . . . . . . . Critical Strikes 6 | . 3 2 . 1 . . Burn 6 | . 3 2 . 1 . . Melee Attacks 23 | . . . . 7 8 8 Impact . | . . . . . . . Slashing . | . . . . . . . Piercing 17 | . . . . 7 5 5 Sneak Attacks 7 | . . . . 1 3 3 Combat Hostiles . | . . . . . . . Follow-up Attacks . | . . . . . . . Damage Inflicted 1402 | . 258 395 . 273 313 163 Guns 841 | . 258 395 . 163 25 . Cannons . | . . . . . . . Explosions 451 | . . . . . 288 163 Melee 110 | . . . . 110 . . Ramming . | . . . . . . . Kinetic 30 | . 30 . . . . . Thermal 811 | . 228 395 . 163 25 . Explosive 451 | . . . . . 288 163 Electromagnetic . | . . . . . . . Impact . | . . . . . . . Slashing . | . . . . . . . Piercing 110 | . . . . 110 . . Highest Corruption . | . . . . . . . Average Corruption . | . . . . . . . Corruption Purged . | . . . . . . . Corruption Blocked . | . . . . . . . Overload Shots . | . . . . . . . Overflow Damage 78 | . . . . 49 26 3 Projectiles . | . . . . . . . Explosions 29 | . . . . . 26 3 Melee 49 | . . . . 49 . . Knockbacks . | . . . . . . . Impact . | . . . . . . . Kinetic . | . . . . . . . Secondary . | . . . . . . . Self-Inflicted Damage 76 | . . . . . 60 16 Shots 3 | . . . . . 2 1 Rammed . | . . . . . . . Targets Rammed . | . . . . . . . Kicked . | . . . . . . . Crushed . | . . . . . . . Highest Temperature 315 | . 315 247 . 234 33 5 Average Temperature 98 | . 112 99 . 104 12 3 Received Heat Transfer 285 | . 51 69 . . 9 156 Effects 2 | . . . . 2 . . Interference 2 | . . . . 2 . . Siege Activations . | . . . . . . . Robots Corrupted . | . . . . . . . Combat Hostiles . | . . . . . . . Parts Fried . | . . . . . . . Impact Corruptions . | . . . . . . . Robots Melted 1 | . 1 . . . . . Combat Hostiles 1 | . 1 . . . . . Parts Melted 3 | . 3 . . . . . Heat Transferred 2826 | . 865 1332 . 555 74 . Parts Sabotaged . | . . . . . . . Parts Stolen . | . . . . . . . Parts Stripped . | . . . . . . . Power Chain Reactions . | . . . . . . . Alert | -11 -10 -10 -10 -9 -8 -7 ------- Run | Yrd Mat Min Exi Min Mat Fac Peak Influence 146 | . 65 40 . 105 146 101 Initial 25 | . . 25 . . . . Average 26 | . 13 12 . 45 49 28 Maximum Alert Level . | . . . . . . . Low Security (%) 100 | 100 100 100 . 100 100 100 Level 1 . | . . . . . . . Level 2 . | . . . . . . . Level 3 . | . . . . . . . Level 4 . | . . . . . . . Level 5 . | . . . . . . . High Security . | . . . . . . . Max Security . | . . . . . . . Squads Dispatched 5 | . . . . . 4 1 Investigation . | . . . . . . . Extermination . | . . . . . . . Reinforcement 5 | . . . . . 4 1 Assault . | . . . . . . . Garrison . | . . . . . . . Intercept . | . . . . . . . Searches Triggered . | . . . . . . . Construction Impeded 1 | . . . . . . 1 Haulers Reinforced . | . . . . . . . Active Scanning Responses . | . . . . . . . Cargo Convoy Interrupts . | . . . . . . . Stealth | -11 -10 -10 -10 -9 -8 -7 --------- Run | Yrd Mat Min Exi Min Mat Fac Distress Signals 3 | . . . . . 3 . Communications Jammed . | . . . . . . . Distress Signals . | . . . . . . . Times Spotted 35 | . 3 8 . 7 8 9 Peak Tracking Total 5 | . 2 2 . 4 5 5 Tactical Retreats 6 | . . . . 1 1 4 Traps | -11 -10 -10 -10 -9 -8 -7 ------- Run | Yrd Mat Min Exi Min Mat Fac Traps Triggered 1 | . 1 . . . . . Indirectly . | . . . . . . . Trap Hack Attempts . | . . . . . . . Triggered . | . . . . . . . Disarmed . | . . . . . . . Reprogrammed . | . . . . . . . Reused . | . . . . . . . Traps Extracted . | . . . . . . . Installed . | . . . . . . . Triggered . | . . . . . . . Machines | -11 -10 -10 -10 -9 -8 -7 ---------- Run | Yrd Mat Min Exi Min Mat Fac Machines Disabled 2 | . . . . . 1 1 Max in Single Turn 1 | . . . . . 1 1 Garrison Access 1 | . . . . . . 1 Machines Repaired . | . . . . . . . Machines Dismantled . | . . . . . . . Machines Sabotaged . | . . . . . . . Overloaded Fab Kills . | . . . . . . . Hacking | -11 -10 -10 -10 -9 -8 -7 --------- Run | Yrd Mat Min Exi Min Mat Fac Machines Accessed 8 | . 2 . . . 2 4 Terminals 4 | . 2 . . . 1 1 Fabricators 1 | . . . . . . 1 Repair Stations . | . . . . . . . Recycling Units 1 | . . . . . . 1 Scanalyzers 1 | . . . . . 1 . Garrison Access 1 | . . . . . . 1 Total Hacks 18 | . 6 . . . 6 6 Successful 5 | . 1 . . . 1 3 Failed 13 | . 5 . . . 5 3 Catastrophic 6 | . 3 . . . 2 1 Database Lockouts . | . . . . . . . Manual 11 | . 4 . 1 . 4 2 Terminals 12 | . 6 . . . 4 2 Fabricators 2 | . . . . . . 2 Repair Stations . | . . . . . . . Recycling Units 1 | . . . . . . 1 Scanalyzers 2 | . . . . . 2 . Garrison Access 1 | . . . . . . 1 Terminal Hacks 1 | . 1 . . . . . Dispatch Records 1 | . 1 . . . . . Fabricator Hacks 1 | . . . . . . 1 Build 1 | . . . . . . 1 Repair Station Hacks . | . . . . . . . Recycling Unit Hacks 1 | . . . . . . 1 Retrieve Components 1 | . . . . . . 1 Scanalyzer 1 | . . . . . 1 . Insert Component 1 | . . . . . 1 . Garrison Access Hacks 1 | . . . . . . 1 Seal Access 1 | . . . . . . 1 Unauthorized Hacks . | . . . . . . . Terminals . | . . . . . . . Fabricators . | . . . . . . . Repair Stations . | . . . . . . . Recycling Units . | . . . . . . . Scanalyzers . | . . . . . . . Garrison Access . | . . . . . . . Data Cores Recovered . | . . . . . . . Used . | . . . . . . . Hacking Detections 6 | . 2 . . . 2 2 Full Trace Events . | . . . . . . . Feedback Events . | . . . . . . . Feedback Blocked . | . . . . . . . Robot Schematics Acquired . | . . . . . . . Robots Built 1 | . . . . . . 1 Authchips . | . . . . . . . Time 40 | . . . . . . 40 Total Robot Build Rating 1 | . . . . . . 1 Part Schematics Acquired . | . . . . . . . Parts Built . | . . . . . . . Authchips . | . . . . . . . Time . | . . . . . . . Total Part Build Rating . | . . . . . . . Parts Repaired . | . . . . . . . Time . | . . . . . . . Parts Recycled . | . . . . . . . Recycled Matter . | . . . . . . . Retrieved Matter . | . . . . . . . Retrieved Components 3 | . . . . . . 3 Parts Scanalyzed . | . . . . . . . Part Schematics Acquired . | . . . . . . . Parts Damaged . | . . . . . . . Bothacking | -11 -10 -10 -10 -9 -8 -7 ------------ Run | Yrd Mat Min Exi Min Mat Fac Used RIF Installer . | . . . . . . . Robots Hacked 7 | . . . . . 1 6 Non-combat 7 | . . . . . 1 6 Combat . | . . . . . . . Robot Hacks Applied 8 | . . . . . 1 7 parse_system 2 | . . . . . 1 1 no_distress 2 | . . . . . . 2 find_chute 2 | . . . . . . 2 find_recycling 2 | . . . . . . 2 Relay Couplers Released . | . . . . . . . Fabnet Peak Effective % . | . . . . . . . Robots Rewired . | . . . . . . . Allies Hacked . | . . . . . . . Hacks Repelled . | . . . . . . . Allies | -11 -10 -10 -10 -9 -8 -7 -------- Run | Yrd Mat Min Exi Min Mat Fac Total Allies 1 | . . . . . . 1 Largest Group 1 | . . . . . . 1 Highest-Rated Group 10 | . . . . . . 10 Highest-Rated Ally 10 | . . . . . . 10 Total Orders 9 | . . . . 6 2 1 ROAM 1 | . . . . 1 . . PICKUP 1 | . . . . . . 1 EXPLORE 7 | . . . . 5 2 . Ally Attacks . | . . . . . . . Total Damage . | . . . . . . . Kills . | . . . . . . . Allies Corrupted . | . . . . . . . Allies Melted . | . . . . . . . Intel | -11 -10 -10 -10 -9 -8 -7 ------- Run | Yrd Mat Min Exi Min Mat Fac Robot Analysis Total . | . . . . . . . Derelict Logs Recovered 5 | . . 2 . 3 . . Drone Launches 8 | . . . . 6 2 . Drone Recoveries 8 | . . . . 6 2 . Exploration | -11 -10 -10 -10 -9 -8 -7 ------------- Run | Yrd Mat Min Exi Min Mat Fac Turns Passed 4200 | 64 534 1407 404 839 410 542 Spaces Moved 2441 | 39 262 702 247 333 317 541 Core 9 | 9 . . . . . . Treads 1703 | 30 262 702 247 333 129 . Legs . | . . . . . . . Wheels . | . . . . . . . Hover . | . . . . . . . Flight 729 | . . . . . 188 541 Fastest Speed 31 | 50 160 160 160 160 31 31 Average Speed 126 | 137 160 160 160 160 87 52 Slowest Speed 317 | 160 160 160 160 160 317 280 Overloaded Moves . | . . . . . . . Propulsion Burnouts . | . . . . . . . Robots Hopped 2 | . . . . . . 2 Cave-ins Triggered . | . . . . . . . Exploration Rate (%) 46 | 4 44 99 41 99 23 14 Regions Visited 6 Branch Regions 3 Pre-discovered Areas 3 | . . 3 . . . . Known Exits Taken . | . . . . . . . Unknown Exits Taken 6 | 1 1 1 1 1 1 . Scrap Searched 3 | . . 1 . 2 . . Spaces Dug 8 | . . . . . 3 5 Terrain Destroyed 55 | . . . . . 19 36 Melee 8 | . . . . . 3 5 Projectile . | . . . . . . . AOE 47 | . . . . . 16 31 Terrain Rammed . | . . . . . . . Walls Destroyed . | . . . . . . . Machines Disabled . | . . . . . . . Actions | -11 -10 -10 -10 -9 -8 -7 --------- Run | Yrd Mat Min Exi Min Mat Fac Total 3409 | 46 347 941 256 599 435 785 Wait 759 | . 55 204 . 231 59 210 Move 2431 | 38 261 701 246 332 316 537 Hop 2 | . . . . . . 2 Pick Up 53 | 1 9 8 2 3 19 11 Fast Attach 14 | 6 3 . 1 . 2 2 Attach 15 | . . 2 . 1 9 3 Detach 6 | . . . . . 5 1 Swap 22 | 1 3 . 3 6 8 1 Drop 17 | . 1 3 4 3 5 1 Fire 67 | . 15 23 . 16 4 9 Melee 23 | . . . . 7 8 8 Ram . | . . . . . . . Kick . | . . . . . . . Crush . | . . . . . . . Escape Stasis . | . . . . . . . Rewire . | . . . . . . . Trap . | . . . . . . . Miscellaneous . | . . . . . . . Route ------- -11/Scrapyard -10/Materials (discovered 2 exits: [*Mat] / [*Min]) -10/Mines (discovered 4 exits: [*Mat x2] / *Exi / [*Sub]) -10/Exiles -9/Mines (discovered 2 exits: *Mat x2) -8/Materials -7/Factory (discovered 1 exit: Low) History --------- Turn | Location | Event 9 | -11/Scrapyard | Discovered new exit (range 16) 65 | -11/Scrapyard | Entered Materials 286 | -10/Materials | Discovered new exit (range 12) 313 | -10/Materials | Build established: Mutant 484 | -10/Materials | Discovered new exit (range 8) 599 | -10/Materials | Entered Mines 672 | -10/Mines | Assembled infested the area 680 | -10/Mines | Learned location of Zion (-6) 1579 | -10/Mines | A weapon hastily lodged in a ceiling crevice suddenly fell to the ground 1601 | -10/Mines | Joined a pair of Derelicts in attacking an 0b10 outpost 1647 | -10/Mines | Discovered new exit (range 3) 1679 | -10/Mines | Discovered new exit (range 6) 1799 | -10/Mines | Discovered new exit (range 10) 1968 | -10/Mines | Learned location of Storage (-7) 1998 | -10/Mines | Deemed a non-threat by the Exiles lab entrance 1999 | -10/Mines | Discovered new exit (range 5) 2006 | -10/Mines | Entered Exiles 2046 | -10/Exiles | Met 8R-AWN 2069 | -10/Exiles | Met EX-HEX 2122 | -10/Exiles | Met EX-BIN 2150 | -10/Exiles | Aligned with FarCom system 2152 | -10/Exiles | Given EX-Vault access code 2189 | -10/Exiles | Opened EX-Vault 2199 | -10/Exiles | Found Prototype Storage 2199 | -10/Exiles | Identified Superbattery 2204 | -10/Exiles | Found Prototype Device 2237 | -10/Exiles | Identified Supersonic Drone Bay 2243 | -10/Exiles | Found Prototype Storage 2276 | -10/Exiles | Warned to stay clear of 0b10 Research branches 2388 | -10/Exiles | Discovered new exit (range 15) 2410 | -10/Exiles | Stole three prototypes: Superbattery, Supersonic Drone Bay, Lightpack 2.0 2410 | -10/Exiles | Entered Mines 2735 | -9/Mines | Discovered new exit (range 38) 2736 | -9/Mines | Discovered new exit (range 46) 3204 | -9/Mines | Learned Materials garrison access intel 3249 | -9/Mines | Entered Materials 3249 | -8/Materials | Evolved 4 slots: Propulsion x2, Utility x2 3250 | -8/Materials | Loaded intel: 1 garrison access location 3258 | -8/Materials | Identified Lightpack 2.0 3651 | -8/Materials | Discovered new exit (range 15) 3659 | -8/Materials | Entered Factory 3659 | -7/Factory | Evolved 2 slots: Utility x2 3660 | -7/Factory | Identified exit to Lower Caves 3661 | -7/Factory | FarCom data flow suspended 3781 | -7/Factory | Build established: Hauler-Sprinter 4192 | -7/Factory | Fabricated A-02 Transporter (x1) 4201 | -7/Factory | Self-destructed Last Messages --------------- Building A-02 Transporter... ETC: 40 04158_ K-01 Serf cleans the Fabricator. 04168_ Connecting with Fabricator... 04186_ Flight Unit destroyed. 04187_ Identified Prc. Rocket Launcher. 04191_ The unstable cave ceiling collapses. 04191_ Fabricator disabled. 04191_ Destroyed Wheel. 04191_ ALERT: Construction progress impeded, dispatching reinforcements to local area. 04192_ Fabricator completes A-02 Transporter. 04192_ K-01 Serf cleans the Assembly Bed. 04193_ Lgt. Nuclear Core destroyed. 04196_ Imp. Terrain Scanner destroyed. 04196_ K-01 Serf destroyed. 04198_ K-01 Serf collects debris. 04199_ The unstable cave ceiling collapses. 04200_ U-05 Engineer lays Concrete. 04201_ Prc. Rocket Launcher destroyed. Map ----- +----------------------------------------------------+ | """ #?# ?? ???????????????????? | | #?# """ """ ???????????????????? | | #######+### """ """ #??????????????????? | | """ """ #??????????????????? | | # ?????????????????? | | """ """ """ +??????????????????? | | """ """ """ #??????????????????? | | """ """ """ #? ????????????????? | | #### ##?#?? ???????????????????? | | ?#?# """ """ ##?##??? ????????????????? | | ???# """ """ ###??# # ???????????????? | | ???# """ """ """ ##?????#??????????????????? | | "??# ! """ ###????#####??????????????? | | ?"?# """ """ " #???#? #?#????????????????? | | "??# """ """ "F" ##??#? ## ?"??????????????? | | ???# """ """ """ #?#?## ????????"??????????? | | ???# #???#??#??"??"???????????? | | ??????""" r #?#? ? #????""""?????????? | | ???? ?""" ## ##? ? + ? ?????????? | | ???? ?""" # aY #?? ?? ?????????? | | ????? " % #?# ## ??????????? | | ???? # " ## ?????????????? | | ????##+########## "" ""k # #????#?#????????? | | ??? ??????? ???# # ### #?? ????????? | | ?????? ?? ??### Y = ##??????????? | | ???????? ? ??#### ! @ #???????????? | | ????? ?????? ?#?# # # u #? ? ???????? | | ??????"???? ????######+#### #???????????? | | ??? ??????"??????##### #?#####+# ## #??? ???????? | | ?????"? ??? ?###??#?#?#?##? ? ? #??#???????????? | | ??????? ????????#???#???#?? ???#??????????????? | | ??????"???"??????#???#??#?##???"?????????????????? | | ?????????????#??????#???#??? ?"?????????????????? | | ?????????""?????###?## ##?#? ????????????????????? | | ??????????????????##?? ???## ?????#??? ??????????? | | ?????????????###????#?? ##????????? ?????????????? | | ???????????????#?#?#? ? ??? ?? ???????????????? | | ??????????????????#??? ? ????? ??????????????????? | | ?????????????????????? ? ?? ?????????????????????? | | ????????????????????? ???????????????????????????? | | ??????????????????????????###????????????????????? | | ?????????????????????????????????????????????????? | | ?????????????????????????????????????????????????? | | ?????????????????????????????????????????????????? | | ?????????????????????????????????????????????????? | | ?????????????????????????????????????????????????? | | ?????????????????????????????????????????????????? | | ?????????????????????????????????????????????????? | | ?????????????????????????????????????????????????? | | ?????????????????????????????????????????????????? | +----------------------------------------------------+ Best States ------------- Heat Dissipation 45 Energy Generation 14 Energy Capacity 1625 Matter Stores 300 Matter Capacity 300 Sight Range 16 Terrain Scan Range 16 Terrain Scan Density 110 Armor Coverage 150 Evasion (%) 63 Targeting Accuracy 5 Recoil Reduction 4 Offensive Hacking 10 Item Schematics ----------------- None Robot Schematics ------------------ None Fabricated ------------ A-02 Transporter | x1 | -7/Factory | Preloaded Alien Tech Used ----------------- None Achievements -------------- None Challenges ------------ None Game ------ Seed CombatVortexWeb Manual? 0 Play Time 00:32:43 Cumulative 50.9 hours Start 2024.04.27 @ 21:12:11 End 2024.04.27 @ 21:45:38 Sessions 1 Manual Loads 0 Difficulty Rogue Special Mode None Game No. 84 Rogue 79 Adventurer 5 Explorer 0 Win Type - Total 1 Types 1/0/0/0/0/0/0/0/0 Lore% 14 Gallery% 51 Achievement% 33 Wizard Run 0 Options --------- Layout 0 ASCII 0 Keyboard 0 Movement Mouse Keybinds 0 Fullscreen 1 Font 24/Smallcaps Map View 76x50 Zoom Use 8% Tactical HUD 1 Map Filters NONE Filters NONE Steam 1 RUN: 4cf106af-b999-47a9-bbdf-f80f2a52c582